bitfinex-derivatives/quotes_SOLF0:USTF0_20250307
["timestamp","ask_amount","ask_price","bid_price","bid_amount"]
[1741319819598,7.0949,140.95,140.87,261.94]
[1741319819798,7.0949,140.95,140.9,12.17564667]
[1741319819998,0.04727077,140.92,140.9,12.17564667]
[1741319821397,0.04727077,140.92,140.91,7.0965]
[1741319821704,6.0315,140.99,140.91,7.0965]
[1741319821705,40.05564667,141.0,140.91,33.67]
[1741319821900,40.05564667,141.0,140.94,12.17564667]
[1741319822506,7.0934,140.98,140.94,12.17564667]
[1741319823007,0.04810492,140.97,140.95,0.05121994]
[1741319824106,7.094,140.96,140.95,0.05121994]
[1741319826100,34.974,140.96,140.95,0.05121994]
[1741319828407,7.0961,140.92,140.88,12.17564667]
[1741319828705,12.17564667,140.94,140.81,7.06264986]
[1741319828905,27.88,140.96,140.85,12.17564667]
[1741319828906,12.17564667,140.92,140.85,12.17564667]
[1741319829111,7.0984,140.88,140.85,12.17564667]
[1741319829505,7.1475429,140.88,140.85,12.17564667]
[1741319829711,0.0491429,140.88,140.85,12.17564667]
[1741319830303,7.1473429,140.88,140.83,12.17564667]
[1741319830701,0.0491429,140.88,140.83,12.17564667]
[1741319831221,27.86,140.87,140.81,21.97533979]
[1741319831408,34.959,140.87,140.81,21.97533979]
[1741319831807,27.86,140.87,140.81,21.97533979]
[1741319832810,27.86,140.87,140.81,12.17564667]
[1741319833213,27.86,140.87,140.82,7.101]
[1741319833413,27.86,140.87,140.83,12.17564667]
[1741319833612,0.0491429,140.88,140.83,12.17564667]
[1741319834214,0.0491429,140.88,140.84,7.0997]
[1741319834512,0.0491429,140.88,140.85,12.17564667]
[1741319834908,0.0491429,140.88,140.85,19.27484667]
[1741319835319,0.0491429,140.88,140.85,12.17564667]
[1741319836412,0.0491429,140.88,140.85,19.27504667]
[1741319838621,0.0491429,140.88,140.85,12.17564667]
[1741319838822,0.0491429,140.88,140.86,7.0989]
[1741319841225,0.0491429,140.88,140.85,12.17564667]
[1741319841426,0.0491429,140.88,140.85,19.27504667]
[1741319841828,0.0491429,140.88,140.85,12.17564667]
[1741319842118,0.0491429,140.88,140.86,7.099]
[1741319842325,0.0491429,140.88,140.85,12.17564667]
[1741319842518,0.0491429,140.88,140.87,19.27424667]
[1741319851828,7.0959,140.93,140.88,7.0978]
[1741319852833,0.0473136,140.92,140.89,0.0491429]
[1741319853632,0.0473136,140.92,140.89,7.1466429]
[1741319853931,0.0473136,140.92,140.89,0.0491429]
[1741319854934,0.0473136,140.92,140.91,12.17564667]
[1741319855329,0.0473136,140.92,140.91,19.27214667]
[1741319856623,0.0473136,140.92,140.89,12.22478957]
[1741319857630,0.0473136,140.92,140.89,19.32228957]
[1741319858432,0.0473136,140.92,140.89,12.22478957]
[1741319860435,0.0473136,140.92,140.91,19.27214667]
[1741319864139,3.9308,141.0,140.95,7.0942]
[1741319864342,132.32495223,141.01,140.96,12.17564667]
[1741319864542,27.84,141.01,140.96,12.17564667]
[1741319864738,27.84,141.01,140.97,7.0935]
[1741319864938,27.84,141.01,140.96,12.17564667]
[1741319865243,7.14078076,141.0,140.97,0.04853525]
[1741319865430,0.04838076,141.0,140.97,0.04853525]
[1741319865636,7.093,140.98,140.97,0.04853525]
[1741319866537,19.26834667,140.99,140.97,0.04853525]
[1741319868747,7.093,140.98,140.97,0.04853525]
[1741319870143,7.14058076,141.0,140.97,0.04853525]
[1741319870547,7.093,140.98,140.97,0.04853525]
[1741319872543,34.913,140.98,140.97,0.04853525]
[1741319872838,34.913,140.98,140.9,12.17564667]
[1741319872839,31.36,140.98,140.9,12.17564667]
[1741319873047,12.17564667,140.95,140.9,12.17564667]
[1741319873241,7.0961,140.92,140.9,12.17564667]
[1741319873442,7.0961,140.92,140.88,14.21774667]
[1741319873748,0.05258411,140.91,140.89,0.04792125]
[1741319877044,0.05258411,140.91,140.9,12.17564667]
[1741319881248,14.04244667,140.99,140.92,7.0957]
[1741319881453,27.8,140.98,140.93,12.17564667]
[1741319882454,0.04792149,140.97,140.94,0.05012772]
[1741319882657,7.0945,140.96,140.94,0.05012772]
[1741319883658,0.04792149,140.97,140.94,0.05012772]
[1741319883955,7.0945,140.95,140.94,0.05012772]
[1741319884752,12.22356816,140.97,140.94,0.05012772]
[1741319885158,14.14134667,140.96,140.94,0.05012772]
[1741319885354,14.14134667,140.96,140.87,12.17564667]
[1741319885557,12.17564667,140.94,140.87,12.17564667]
[1741319885856,7.0969,140.91,140.87,12.17564667]
[1741319886458,0.05262722,140.9,140.88,0.04500835]
[1741319889757,0.05262722,140.9,140.88,7.14290835]
[1741319891359,0.05262722,140.9,140.89,19.27314667]
[1741319891950,234.2,140.98,140.89,19.27314667]
[1741319891951,81.80003966,140.99,140.89,39.97564667]
[1741319892156,107.68173966,140.99,140.94,12.17564667]
[1741319892557,114.77443966,140.99,140.94,19.27034667]
[1741319892956,86.97443966,140.99,140.94,19.27034667]
[1741319893156,0.05206256,140.98,140.95,0.05331251]
[1741319893360,0.05206256,140.98,140.96,7.0937]
[1741319893565,0.05206256,140.98,140.96,12.17564667]
[1741319893961,0.05206256,140.98,140.96,19.26954667]
[1741319894662,0.05206256,140.98,140.96,7.0939]
[1741319894862,0.05206256,140.98,140.95,19.06933545]
[1741319895059,0.05206256,140.98,140.96,7.0937]
[1741319897169,0.05206256,140.98,140.95,19.06933545]
[1741319897370,0.05206256,140.98,140.95,26.16373545]
[1741319897569,0.05206256,140.98,140.95,19.06933545]
[1741319898477,0.05206256,140.98,140.95,26.16373545]
[1741319899186,0.05206256,140.98,140.96,7.0937]
[1741319899381,0.05206256,140.98,140.95,19.06933545]
[1741319899988,0.05206256,140.98,140.96,7.094]
[1741319902487,0.05206256,140.98,140.95,0.05331251]
[1741319903879,7.14516256,140.98,140.95,0.05331251]
[1741319904781,7.0936,140.97,140.95,0.05331251]
[1741319904979,0.05206256,140.98,140.95,0.05331251]
[1741319905791,7.0935,140.97,140.95,0.05331251]
[1741319906088,0.05206256,140.98,140.95,0.05331251]
[1741319906383,7.094,140.96,140.95,0.05331251]
[1741319906586,1.9889,140.97,140.87,19.01602294]
[1741319906787,19.01602294,140.93,140.84,1.23487456]
[1741319906990,7.0966,140.91,140.84,7.0996]
[1741319907388,27.76,140.92,140.83,19.01602294]
[1741319907590,0.05383031,140.89,140.86,0.04941272]
[1741319909079,7.15143031,140.89,140.86,0.04941272]
[1741319909290,0.05383031,140.89,140.86,0.04941272]
[1741319912096,7.0984,140.88,140.86,0.04941272]
[1741319912289,0.05383031,140.89,140.86,0.04941272]
[1741319912492,7.0984,140.88,140.86,0.04941272]
[1741319912798,0.05383031,140.89,140.86,0.04941272]
[1741319912986,7.0986,140.87,140.86,0.04941272]
[1741319914493,27.76,140.88,140.86,0.04941272]
[1741319915596,34.8582,140.88,140.86,0.04941272]
[1741319917902,7.0986,140.87,140.86,0.04941272]
[1741319921100,34.8582,140.88,140.86,0.04941272]
[1741319923403,27.76,140.88,140.86,0.04941272]
[1741319923705,0.05383031,140.89,140.86,0.04941272]
[1741319924504,7.0981,140.88,140.86,0.04941272]
[1741319924706,0.05383031,140.89,140.86,0.04941272]
[1741319926602,0.05383031,140.89,140.86,7.14821272]
[1741319927410,0.05383031,140.89,140.86,0.04941272]
[1741319928505,0.05383031,140.89,140.86,7.14811272]
[1741319930109,0.05383031,140.89,140.87,7.0985]
[1741319930997,0.05383031,140.89,140.84,12.19070279]
[1741319930998,12.19070279,140.88,140.72,190.0]
[1741319931202,12.19070279,140.85,140.78,12.19070279]
[1741319932104,0.05083956,140.83,140.8,12.19070279]
[1741319932496,0.05083956,140.83,140.77,46.82319783]
[1741319932996,27.81083956,140.83,140.75,19.06319783]
[1741319933199,27.81083956,140.83,140.73,7.05749297]
[1741319933200,27.76,140.83,140.73,24.88469783]
[1741319933410,7.15688009,140.8,140.73,24.88469783]
[1741319934506,0.05438009,140.8,140.73,5.8215]
[1741319934712,0.05438009,140.8,140.73,3.9079]
[1741319935418,0.05438009,140.8,140.71,234.28]
[1741319935419,27.76,140.79,140.71,234.28]
[1741319935799,7.14921648,140.76,140.71,234.28]
[1741319936112,0.04471648,140.76,140.71,234.28]
[1741319936311,7.1047,140.75,140.71,234.28]
[1741319936610,0.04471648,140.76,140.69,20.97529783]
[1741319936809,0.04471648,140.76,140.69,48.73529783]
[1741319937410,0.04471648,140.76,140.69,20.97529783]
[1741319937812,7.1055,140.74,140.69,1.9121]
[1741319938209,0.05361076,140.73,140.65,1.23662983]
[1741319938414,7.1066,140.72,140.64,65.37207033]
[1741319938612,2.0204,140.73,140.64,26.17329783]
[1741319938816,0.05186179,140.69,140.64,19.06319783]
[1741319939016,0.05186179,140.69,140.65,7.1092]
[1741319939712,0.05186179,140.69,140.67,7.1085]
[1741319940021,0.05186179,140.69,140.64,19.06319783]
[1741319940314,0.05186179,140.69,140.64,26.17329783]
[1741319941014,0.05186179,140.69,140.65,7.1095]
[1741319943213,16.38101279,140.82,140.68,38.12639566]
[1741319943412,83.74383966,140.84,140.74,19.06319783]
[1741319943612,83.74383966,140.84,140.74,46.82319783]
[1741319943812,7.1017,140.81,140.74,53.92789783]
[1741319944005,27.76,140.82,140.72,19.06319783]
[1741319944210,19.06319783,140.79,140.71,262.24]
[1741319944418,0.0543339,140.78,140.76,0.05214142]
[1741319945317,27.8143339,140.78,140.76,0.05214142]
[1741319946911,0.0543339,140.78,140.76,0.05214142]
[1741319947112,0.0543339,140.78,140.76,7.15614142]
[1741319947307,0.0543339,140.78,140.76,0.05214142]
[1741319950513,7.1036,140.77,140.76,0.05214142]
[1741319950714,0.0543339,140.78,140.76,0.05214142]
[1741319954826,7.1036,140.77,140.76,0.05214142]
[1741319957319,7.1575339,140.78,140.76,0.05214142]
[1741319957524,0.0543339,140.78,140.76,0.05214142]
[1741319959028,7.1036,140.77,140.76,0.05214142]
[1741319961426,7.1576339,140.78,140.76,0.05214142]
[1741319961730,0.0543339,140.78,140.76,0.05214142]
[1741319962432,7.1036,140.77,140.76,0.05214142]
[1741319964831,7.1575339,140.78,140.76,0.05214142]
[1741319965936,0.0543339,140.78,140.76,0.05214142]
[1741319966138,7.1036,140.77,140.76,0.05214142]
[1741319966835,0.0543339,140.78,140.76,0.05214142]
[1741319967424,7.1577339,140.78,140.76,0.05214142]
[1741319967628,0.0543339,140.78,140.76,0.05214142]
[1741319968841,7.1056,140.73,140.69,38.6948]
[1741319969040,27.74,140.76,140.69,31.5873]
[1741319969838,0.04526678,140.74,140.69,31.5873]
[1741319970938,7.15046678,140.74,140.69,38.6949]
[1741319971139,0.04526678,140.74,140.69,3.8473]
[1741319971340,0.04526678,140.74,140.67,27.74]
[1741319971641,7.1065,140.72,140.67,34.8483]
[1741319971834,27.74,140.76,140.67,27.74]
[1741319972035,0.04797328,140.71,140.67,27.74]
[1741319972235,0.04797328,140.71,140.68,7.1081]
[1741319972441,0.04797328,140.71,140.67,27.74]
[1741319972838,0.04797328,140.71,140.68,7.108]
[1741319974138,0.04797328,140.71,140.69,7.1076]
[1741319974439,0.04797328,140.71,140.68,19.06319783]
[1741319975241,0.04797328,140.71,140.69,7.1076]
[1741319976139,0.04797328,140.71,140.68,19.06319783]
[1741319976140,0.04797328,140.71,140.7,7.1071]
[1741319977644,0.04797328,140.71,140.7,34.8471]
[1741319979146,27.74,140.78,140.73,7.1052]
[1741319979748,7.1039,140.77,140.73,7.1052]
[1741319980141,7.1041,140.76,140.72,7.1059]
[1741319980343,7.14945923,140.76,140.74,0.04747843]
[1741319980844,0.04535923,140.76,140.74,0.04747843]
[1741319981045,0.04535923,140.76,140.66,1.9019]
[1741319981350,19.06319783,140.76,140.66,22.89049783]
[1741319981643,7.1056,140.73,140.68,7.1077]
[1741319982237,7.15275062,140.72,140.68,7.1077]
[1741319982656,0.04655062,140.72,140.68,7.1077]
[1741319983953,0.04655062,140.72,140.68,19.06319783]
[1741319984143,0.04655062,140.72,140.69,27.74]
[1741319984345,0.04655062,140.72,140.69,29.7175]
[1741319984646,0.04655062,140.72,140.7,7.1068]
[1741319984852,0.04655062,140.72,140.69,29.7175]
[1741319985446,0.04655062,140.72,140.71,7.1066]
[1741319987349,0.04655062,140.72,140.7,19.06319783]
[1741319987555,0.04655062,140.72,140.69,29.7175]
[1741319989455,0.04655062,140.72,140.71,7.1066]
[1741319990252,0.04655062,140.72,140.69,9.085]
[1741319990451,0.04655062,140.72,140.69,1.9775]
[1741319991445,0.04655062,140.72,140.69,9.085]
[1741319991846,0.04655062,140.72,140.69,1.9775]
[1741319992042,0.04655062,140.72,140.7,7.1071]
[1741319992350,0.04655062,140.72,140.69,1.9775]
[1741319992562,0.04655062,140.72,140.7,7.1071]
[1741319997057,0.04655062,140.72,140.71,7.1066]
[1741319997853,93.76665695,140.8,140.79,7.1026]
[1741319998058,93.76665695,140.8,140.79,27.72]
[1741319998254,77.86193966,140.8,140.79,27.72]
[1741320000959,77.86193966,140.8,140.78,0.04551496]
[1741320001861,0.05371946,140.81,140.78,7.14851496]
[1741320002159,0.05371946,140.81,140.78,0.04551496]
[1741320002657,19.11691729,140.81,140.78,0.04551496]
[1741320003056,7.1025,140.8,140.78,0.04551496]
[1741320003755,24.88771729,140.81,140.78,0.04551496]
[1741320003756,7.1026,140.79,140.78,0.04551496]
[1741320003957,19.06319783,140.79,140.67,39.1987725]
[1741320004262,19.06319783,140.73,140.67,39.1987725]
[1741320004558,46.78319783,140.73,140.67,39.1987725]
[1741320004763,27.72,140.73,140.67,39.1987725]
[1741320005055,0.05178213,140.71,140.67,19.06319783]
[1741320005767,0.05178213,140.71,140.7,7.1071]
[1741320006566,0.05178213,140.71,140.68,7.1077]
[1741320006861,0.05178213,140.71,140.63,244.29969312]
[1741320007060,7.1082,140.68,140.63,9.79969312]
[1741320007254,34.8282,140.68,140.63,9.79969312]
[1741320007455,0.05195379,140.67,140.6,58.57429095]
[1741320007659,0.05195379,140.67,140.65,7.1094]
[1741320008159,0.05195379,140.67,140.6,39.51109312]
[1741320008356,0.05195379,140.67,140.62,19.06319783]
[1741320009463,0.05195379,140.67,140.64,19.06319783]
[1741320009767,0.05195379,140.67,140.64,27.72]
[1741320010156,0.05195379,140.67,140.62,19.06319783]
[1741320010554,0.05195379,140.67,140.62,7.1107]
[1741320010755,0.05195379,140.67,140.6,29.7114]
[1741320011863,0.05195379,140.67,140.6,60.28073607]
[1741320013365,27.77195379,140.67,140.59,3.8483]
[1741320013962,27.77195379,140.67,140.61,7.1116]
[1741320015072,27.77195379,140.67,140.6,7.1122]
[1741320015272,27.77195379,140.67,140.59,31.5683]
[1741320015467,1.8647,140.66,140.56,58.28933607]
[1741320015870,0.04735665,140.62,140.61,7.1112]
[1741320016170,1.8647,140.66,140.6,27.72]
[1741320016471,0.04558371,140.63,140.6,27.72]
[1741320016662,27.72,140.69,140.6,27.72]
[1741320016663,1.8647,140.7,140.6,27.72]
[1741320016860,1.8647,140.7,140.62,30.56933607]
[1741320017264,19.86983493,140.71,140.62,30.56933607]
[1741320018068,0.04559831,140.68,140.67,7.1086]
[1741320018671,0.04559831,140.68,140.65,0.05091464]
[1741320019470,0.04559831,140.68,140.67,7.1086]
[1741320021071,3.9786,140.75,140.73,7.1055]
[1741320021265,3.9786,140.75,140.68,27.72]
[1741320021470,1.8647,140.76,140.68,58.28933607]
[1741320022270,0.05265535,140.73,140.71,0.0542822]
[1741320022475,21.61678871,140.79,140.72,27.72]
[1741320022770,17.63818871,140.79,140.78,7.1031]
[1741320022975,2.0345,140.83,140.78,7.1031]
[1741320023275,3.9176,140.83,140.78,7.1031]
[1741320023669,0.05234936,140.82,140.79,0.05414263]
[1741320024071,0.05234936,140.82,140.79,7.15664263]
[1741320024376,0.05234936,140.82,140.79,0.05414263]
[1741320025176,7.15344936,140.82,140.79,0.05414263]
[1741320026469,0.05234936,140.82,140.79,0.05414263]
[1741320028972,0.05234936,140.82,140.8,7.1017]
[1741320029172,0.05234936,140.82,140.79,0.05414263]
[1741320029373,0.05234936,140.82,140.8,27.7]
[1741320029572,3.8424,140.88,140.8,27.7]
[1741320029773,3.8424,140.88,140.8,58.26933607]
[1741320029979,3.8424,140.88,140.8,60.16363607]
[1741320030173,29.682,140.89,140.8,60.16363607]
[1741320030571,7.0981,140.88,140.82,7.101]
[1741320030879,0.04923274,140.86,140.83,0.05400026]
[1741320032874,7.1,140.85,140.83,0.05400026]
[1741320033075,0.04923274,140.86,140.83,0.05400026]
[1741320034285,0.04923274,140.86,140.83,7.15450026]
[1741320034581,0.04923274,140.86,140.84,27.7]
[1741320035381,27.7,140.91,140.84,27.7]
[1741320036483,0.05359285,140.89,140.86,0.04718369]
[1741320037996,7.098,140.88,140.86,0.04718369]
[1741320038199,0.05359285,140.89,140.86,0.04718369]
[1741320039794,7.0985,140.88,140.86,0.04718369]
[1741320041494,0.05359285,140.89,140.86,0.04718369]
[1741320042882,0.05359285,140.89,140.88,7.098]
[1741320043796,0.05359285,140.89,140.87,7.0985]
[1741320044295,29.6868,140.95,140.9,7.097]
[1741320044296,2.0068,140.95,140.9,7.097]
[1741320044498,1.95,140.97,140.9,7.097]
[1741320044791,1.95,140.97,140.89,7.0974]
[1741320045189,7.0957,140.93,140.88,58.24933607]
[1741320045384,1.95,140.97,140.89,7.0975]
[1741320045585,0.04699476,140.92,140.89,0.04475972]
[1741320045988,380.39424812,141.04,140.91,7.0965]
[1741320046194,33.5353,141.02,140.92,27.68]
[1741320046395,7.0931,140.98,140.92,27.68]
[1741320046986,33.5353,141.02,140.92,27.68]
[1741320047187,0.05365315,140.96,140.94,0.04830548]
[1741320047387,33.5353,141.02,140.94,0.04830548]
[1741320047592,0.05249904,140.96,140.94,0.04830548]
[1741320047801,5.8553,141.02,140.94,0.04830548]
[1741320047989,0.05198228,140.96,140.94,0.04830548]
[1741320048194,7.0926,140.99,140.94,0.04830548]
[1741320048389,0.04475717,140.96,140.94,0.04830548]
[1741320052103,7.13885717,140.96,140.94,0.04830548]
[1741320053502,0.04475717,140.96,140.94,0.04830548]
[1741320053697,7.0945,140.95,140.94,0.04830548]
[1741320056505,0.04475717,140.96,140.94,0.04830548]
[1741320058402,0.04475717,140.96,140.94,7.14330548]
[1741320058609,0.04475717,140.96,140.95,27.66]
[1741320059008,0.04475717,140.96,140.95,34.7545]
[1741320060305,27.66,141.05,140.97,7.0931]
[1741320060507,27.66,141.05,140.95,27.66]
[1741320061403,7.092,141.0,140.99,0.04694423]
[1741320062012,0.04944812,141.01,140.99,0.04694423]
[1741320063210,7.14114812,141.01,140.99,0.04694423]
[1741320063411,0.04944812,141.01,140.99,0.04694423]
[1741320063807,7.092,141.0,140.99,0.04694423]
[1741320066809,0.04944812,141.01,140.94,253.17373006]
[1741320067002,7.0942,140.96,140.94,234.16]
[1741320067204,21.04953006,141.0,140.93,27.64]
[1741320067400,2.0362,140.99,140.9,19.01373006]
[1741320067610,2.0362,140.99,140.9,46.65373006]
[1741320068111,7.0951,140.94,140.93,0.05151402]
[1741320068315,19.06373323,140.96,140.88,234.1]
[1741320068611,7.0975,140.9,140.88,261.74]
[1741320069112,27.64,140.93,140.84,46.65373006]
[1741320069312,2.0262,140.92,140.84,46.65373006]
[1741320069512,0.0516905,140.9,140.87,0.04588373]
[1741320070706,0.0516905,140.9,140.88,27.64]
[1741320071913,15.90827522,141.0,140.88,61.64211836]
[1741320072105,15.90827522,141.0,140.92,30.46211836]
[1741320072317,137.92094166,141.0,140.93,27.64]
[1741320072517,7.0929,140.99,140.94,7.095]
[1741320073007,0.05262639,140.98,140.95,0.0490647]
[1741320073510,27.64,140.97,140.81,234.16]
[1741320073714,34.30501836,140.96,140.84,30.46211836]
[1741320074013,34.30501836,140.96,140.86,7.0989]
[1741320074208,34.30501836,140.96,140.82,29.5586]
[1741320074209,3.8429,140.96,140.87,58.10211836]
[1741320074510,7.0949,140.95,140.87,58.10211836]
[1741320074815,0.04573739,140.93,140.9,0.05453959]
[1741320075212,0.04573739,140.93,140.91,27.64]
[1741320075414,0.04573739,140.93,140.9,0.05453959]
[1741320075915,0.04573739,140.93,140.9,27.69453959]
[1741320076125,3.9621,141.0,140.92,30.46211836]
[1741320076410,7.0916,141.01,140.92,30.46211836]
[1741320076712,27.64,141.03,140.95,30.46211836]
[1741320076713,7.0914,141.02,140.95,30.46211836]
[1741320077019,27.64,141.03,140.96,27.64]
[1741320077315,0.05114562,141.01,140.98,0.05174817]
[1741320077718,0.05114562,141.01,140.98,7.14464817]
[1741320078416,0.05114562,141.01,140.99,7.0925]
[1741320078715,0.05114562,141.01,141.0,27.64]
[1741320078911,77.86193966,141.05,141.02,7.091]
[1741320079317,77.86193966,141.05,141.0,27.64]
[1741320080120,0.04498238,141.04,141.01,0.04741785]
[1741320082018,7.13498238,141.04,141.01,0.04741785]
[1741320082420,7.0905,141.03,141.01,0.04741785]
[1741320083217,7.13508238,141.04,141.01,0.04741785]
[1741320083421,0.04498238,141.04,141.01,0.04741785]
[1741320084425,7.0909,141.03,141.01,0.04741785]
[1741320084819,0.04498238,141.04,141.01,30.50953621]
[1741320085220,0.04498238,141.04,141.01,32.51903621]
[1741320085519,0.04498238,141.04,141.01,0.04741785]
[1741320086918,0.04498238,141.04,141.02,30.46211836]
[1741320087120,1.9054,141.09,141.02,30.46211836]
[1741320087327,7.0889,141.07,141.02,30.46211836]
[1741320087527,1.9054,141.09,141.02,30.46211836]
[1741320088330,0.05289948,141.07,141.04,0.05414066]
[1741320090430,7.0895,141.05,141.04,0.05414066]
[1741320093130,0.05289948,141.07,141.04,0.05414066]
[1741320093326,7.14179948,141.07,141.04,0.05414066]
[1741320093629,0.05289948,141.07,141.04,0.05414066]
[1741320093829,7.0893,141.06,141.04,0.05414066]
[1741320094029,0.05289948,141.07,141.04,0.05414066]
[1741320094420,7.0895,141.06,141.04,0.05414066]
[1741320095332,7.0895,141.05,141.04,0.05414066]
[1741320099126,0.05289948,141.07,141.04,0.05414066]
[1741320099726,7.0895,141.05,141.04,0.05414066]
[1741320103724,0.05289948,141.07,141.04,0.05414066]
[1741320104537,7.0895,141.06,141.04,0.05414066]
[1741320105037,0.05289948,141.07,141.04,0.05414066]
[1741320105836,7.089,141.06,141.04,0.05414066]
[1741320106034,0.05289948,141.07,141.04,0.05414066]
[1741320107131,7.0895,141.05,141.04,0.05414066]
[1741320109836,0.05289948,141.07,141.04,0.05414066]
[1741320110033,7.0894,141.06,141.04,0.05414066]
[1741320110839,0.05289948,141.07,141.04,7.14394066]
[1741320111436,7.14189948,141.07,141.04,0.05414066]
[1741320111636,0.05289948,141.07,141.04,0.05414066]
[1741320112133,7.089,141.06,141.04,0.05414066]
[1741320112340,0.05289948,141.07,141.04,0.05414066]
[1741320112735,7.0894,141.06,141.04,0.05414066]
[1741320113939,0.05289948,141.07,141.04,0.05414066]
[1741320116645,7.089,141.06,141.04,0.05414066]
[1741320117051,7.0895,141.05,141.04,0.05414066]
[1741320118351,7.0905,141.04,141.0,19.00331806]
[1741320118646,27.6,141.07,141.0,19.00331806]
[1741320119547,0.04582114,141.05,141.02,0.04840545]
[1741320120350,0.04582114,141.05,141.02,46.65172351]
[1741320120744,0.04582114,141.05,141.03,7.0901]
[1741320120947,0.04582114,141.05,141.02,46.65172351]
[1741320121348,0.04582114,141.05,141.03,7.0905]
[1741320121548,0.04582114,141.05,141.02,46.65172351]
[1741320122047,0.04582114,141.05,141.03,7.0905]
[1741320122243,0.04582114,141.05,141.02,46.65172351]
[1741320122643,0.04582114,141.05,141.04,7.09]
[1741320122843,7.0905,141.03,141.02,0.04840545]
[1741320123548,7.0926,140.99,140.94,19.00331806]
[1741320123755,7.0926,140.99,140.93,20.91531806]
[1741320124047,7.0926,140.99,140.93,48.51531806]
[1741320124248,1.9391,141.02,140.93,48.51531806]
[1741320124452,1.9391,141.02,140.93,55.61071806]
[1741320124640,0.05018711,140.99,140.96,0.04766038]
[1741320125043,27.65018711,140.99,140.96,0.04766038]
[1741320125247,27.65018711,140.99,140.94,9.79969312]
[1741320125448,2.0173,140.98,140.94,9.79969312]
[1741320126042,7.0945,140.95,140.94,9.79969312]
[1741320126251,21.02061806,140.98,140.93,105.94416439]
[1741320126553,7.095,140.94,140.93,94.95956844]
[1741320128150,10.635,140.94,140.93,0.02697631]
[1741320128347,10.635,140.94,140.92,114.79282985]
[1741320128348,46.60331806,140.95,140.85,22.84641806]
[1741320128548,46.60331806,140.95,140.85,3.8431]
[1741320128950,27.6,140.95,140.85,22.84641806]
[1741320129156,27.6,140.95,140.88,7.098]
[1741320129347,0.04847108,140.91,140.89,0.04853188]
[1741320129948,7.14507108,140.91,140.89,0.04853188]
[1741320130246,27.66847108,140.91,140.89,0.04853188]
[1741320130558,19.00331806,140.9,140.81,31.46972018]
[1741320130849,27.62,140.91,140.82,19.00331806]
[1741320131054,34.7165,140.91,140.82,19.00331806]
[1741320131752,0.04673781,140.88,140.85,0.04755913]
[1741320131956,0.04673781,140.88,140.86,19.00331806]
[1741320132251,0.04673781,140.88,140.87,7.0986]
[1741320133045,27.62,140.94,140.86,19.00331806]
[1741320133259,27.62,140.94,140.88,19.00331806]
[1741320133459,105.48193966,140.97,140.9,19.00331806]
[1741320133656,105.48193966,140.97,140.93,7.0955]
[1741320133853,77.86193966,140.97,140.92,19.00331806]
[1741320134159,77.86193966,140.97,140.96,7.094]
[1741320134359,77.86193966,140.97,140.93,0.05057193]
[1741320134757,77.86193966,140.97,140.94,7.095]
[1741320135057,77.86193966,140.97,140.93,0.05057193]
[1741320135651,7.14072603,140.98,140.93,0.05057193]
[1741320135851,0.04772603,140.98,140.93,0.05057193]
[1741320136263,7.095,140.94,140.93,0.05057193]
[1741320137054,0.05066136,140.95,140.85,30.46288951]
[1741320137359,1.8646,140.93,140.82,264.60288951]
[1741320137553,27.62,140.92,140.82,264.60288951]
[1741320138256,0.04928551,140.88,140.86,0.04743649]
[1741320139149,0.04928551,140.88,140.86,7.14643649]
[1741320139454,27.62,140.95,140.86,0.04743649]
[1741320139656,27.62,140.95,140.88,30.46288951]
[1741320139963,27.62,140.98,140.9,7.097]
[1741320140154,27.62,140.98,140.89,1.894]
[1741320140455,0.04806241,140.95,140.92,0.05020583]
[1741320142257,7.0952,140.94,140.92,0.05020583]
[1741320142854,7.0955,140.93,140.92,0.05020583]
[1741320144154,27.66806241,140.95,140.92,0.05020583]
[1741320144557,7.14296241,140.95,140.92,0.05020583]
[1741320145154,0.04806241,140.95,140.92,0.05020583]
[1741320145358,7.0955,140.94,140.92,0.05020583]
[1741320147865,0.04806241,140.95,140.92,0.05020583]
[1741320148061,7.14276241,140.95,140.92,0.05020583]
[1741320149362,0.04806241,140.95,140.92,0.05020583]
[1741320150069,27.62,140.94,140.92,0.05020583]
[1741320150369,29.6248,140.94,140.83,4.015]
[1741320150565,1.947,140.93,140.83,4.015]
[1741320151468,0.04915223,140.89,140.87,0.0468965]
[1741320151662,27.66915223,140.89,140.87,0.0468965]
[1741320153770,0.04915223,140.89,140.87,0.0468965]